fUST/lending_fUST_20250526
["ID","MTS","AMOUNT","RATE_DAILY","PERIOD"]
[362392408,1748245859450,-227.9,0.00021643,2]
[362392411,1748245859471,-430.0,0.00021643,2]
[362392413,1748245859480,-1887.09,0.00021643,2]
[362392415,1748245859490,-1569.9,0.00021643,2]
[362392417,1748245859499,-430.0,0.00021643,2]
[362392419,1748245859508,-430.0,0.00021643,2]
[362392421,1748245859518,-1924.19,0.00021643,2]
[362392423,1748245859527,-3057.21,0.00021643,2]
[362392425,1748245859536,-518.54,0.00021643,2]
[362392427,1748245859546,-588.02,0.00021643,2]
[362392429,1748245859555,-430.0,0.00021643,2]
[362392431,1748245859565,-430.0,0.00021643,2]
[362392433,1748245859575,-468.75,0.00021643,2]
[362392435,1748245859585,-430.0,0.00021643,2]
[362392437,1748245859594,-430.0,0.00021643,2]
[362392439,1748245859604,-1257.45,0.00021643,2]
[362392441,1748245859614,-1149.24,0.00021643,2]
[362392443,1748245859623,-157.44610476,0.00021671,2]
[362392445,1748245859633,-5000.0,0.00021674,2]
[362392447,1748245859643,-5000.0,0.00021732,2]
[362392449,1748245859653,-500.0,0.00021816,2]
[362392451,1748245859663,-1112.61514983,0.00021866,6]
[362392453,1748245859672,-1469.74,0.000219,2]
[362392455,1748245859682,-150.079533,0.000219,2]
[362392457,1748245859692,-201.73770344,0.00021917,2]
[362392459,1748245859702,-430.0,0.00021917,2]
[362392461,1748245859714,-430.0,0.00021917,2]
[362392463,1748245859724,-507.72,0.00021917,2]
[362392465,1748245859733,-430.0,0.00021917,2]
[362392467,1748245859743,-430.0,0.00021917,2]
[362392469,1748245859752,-306.23041011,0.00021917,2]
[362392471,1748245859762,-444.29,0.00021917,2]
[362392473,1748245859771,-430.0,0.00021917,2]
[362392475,1748245859781,-472.4,0.00021917,2]
[362392476,1748245859791,-430.0,0.00021917,2]
[362392478,1748245859800,-430.0,0.00021917,2]
[362392480,1748245859809,-430.0,0.00021917,2]
[362392482,1748245859820,-430.13,0.00021917,2]
[362392484,1748245859832,-699.59,0.00021917,2]
[362392486,1748245859842,-2830.25,0.00021917,2]
[362392488,1748245859851,-452.83109271,0.00021917,2]
[362392490,1748245859860,-430.0,0.00021917,2]
[362392492,1748245859871,-444.44,0.00021917,2]
[362392494,1748245859881,-430.0,0.00021917,2]
[362392496,1748245859890,-432.14,0.00021917,2]
[362392498,1748245859901,-430.0,0.00021917,2]
[362392500,1748245859911,-709.96,0.00021917,2]
[362392502,1748245859920,-430.0,0.00021917,2]
[362392504,1748245859930,-627.56,0.00021917,2]
[362392506,1748245859940,-1010.74,0.00021917,2]
[362392508,1748245859949,-430.0,0.00021917,2]
[362392510,1748245859959,-1887.09,0.00021917,2]
[362392512,1748245859969,-6425.06,0.00021917,2]
[362392514,1748245859978,-1569.9,0.00021917,2]
[362392516,1748245859988,-430.0,0.00021917,2]
[362392518,1748245859997,-430.0,0.00021917,2]
[362392520,1748245860007,-1924.19,0.00021917,2]
[362392522,1748245860017,-3057.21,0.00021917,2]
[362392524,1748245860027,-518.54,0.00021917,2]
[362392526,1748245860038,-588.02,0.00021917,2]
[362392528,1748245860047,-430.0,0.00021917,2]
[362392530,1748245860058,-430.0,0.00021917,2]
[362392532,1748245860068,-468.75,0.00021917,2]
[362392534,1748245860078,-430.0,0.00021917,2]
[362392536,1748245860088,-430.0,0.00021917,2]
[362392538,1748245860098,-1257.45,0.00021917,2]
[362392541,1748245860108,-1149.24,0.00021917,2]
[362392542,1748245860119,-500.0,0.00021917,2]
[362392544,1748245860129,-157.44610476,0.00021945,2]
[362392546,1748245860139,-617.67149582,0.00021978,2]
[362392548,1748245860148,-2000.0,0.00022,2]
[362392550,1748245860158,-100105.17776528,0.00022,2]
[362392552,1748245860168,-505.0,0.00022,3]
[362392554,1748245860177,-10000.0,0.00022,120]
[362392556,1748245860187,-11328.85266884,0.00022122,2]
[362392559,1748245860197,-1112.61514983,0.00022141,6]
[362392560,1748245860207,-5000.0,0.00022164,2]
[362392563,1748245860217,-3000.0,0.00022164,2]
[362392565,1748245860227,-170.7,0.00022191,2]
[362392567,1748245860237,-516.12927608,0.00022191,2]
[362392568,1748245860247,-507.72,0.00022191,2]
[362392571,1748245860256,-430.0,0.00022191,2]
[362392572,1748245860266,-506.26,0.00022191,2]
[362392575,1748245860276,-444.29,0.00022191,2]
[362392577,1748245860286,-430.0,0.00022191,2]
[362392578,1748245860296,-472.4,0.00022191,2]
[362392580,1748245860305,-430.0,0.00022191,2]
[362392583,1748245860316,-430.0,0.00022191,2]
[362392585,1748245860325,-430.0,0.00022191,2]
[362392587,1748245860335,-430.13,0.00022191,2]
[362392588,1748245860345,-699.59,0.00022191,2]
[362392590,1748245860354,-2830.25,0.00022191,2]
[362392592,1748245860365,-430.0,0.00022191,2]
[362392594,1748245860375,-444.44,0.00022191,2]
[362392596,1748245860384,-430.0,0.00022191,2]
[362392599,1748245860394,-432.14,0.00022191,2]
[362392601,1748245860404,-492.3,0.00022191,2]
[362392602,1748245860414,-709.96,0.00022191,2]
[362392604,1748245860424,-430.0,0.00022191,2]
[362392606,1748245860434,-627.56,0.00022191,2]
[362392609,1748245860444,-1010.74,0.00022191,2]
[362392610,1748245860455,-430.0,0.00022191,2]
[362392612,1748245860465,-1887.09,0.00022191,2]
[362392614,1748245860474,-1569.9,0.00022191,2]
[362392616,1748245860484,-430.0,0.00022191,2]
[362392618,1748245860494,-288.16,0.00022191,2]
[362392620,1748245860504,-1924.19,0.00022191,2]
[362392623,1748245860514,-3057.21,0.00022191,2]
[362392625,1748245860524,-518.54,0.00022191,2]
[362392627,1748245860534,-588.02,0.00022191,2]
[362392628,1748245860543,-430.0,0.00022191,2]
[362392630,1748245860553,-430.0,0.00022191,2]
[362392632,1748245860563,-468.75,0.00022191,2]
[362392635,1748245860573,-430.0,0.00022191,2]
[362392637,1748245860583,-430.0,0.00022191,2]
[362392639,1748245860593,-1257.45,0.00022191,2]
[362392641,1748245860607,-1149.24,0.00022191,2]
[362392643,1748245860616,-157.44610476,0.00022219,2]
[362392645,1748245860626,-223.0315306,0.0002222,2]
[362392647,1748245860636,-5000.0,0.00022222,2]
[362392649,1748245860646,-600.0,0.00022256,2]
[362392651,1748245860655,-2026.68370845,0.00022279,2]
[362392653,1748245860665,-1112.61514983,0.00022417,7]
[362392655,1748245860675,-507.72,0.00022465,2]
[362392657,1748245860685,-430.0,0.00022465,2]
[362392659,1748245860695,-444.29,0.00022465,2]
[362392661,1748245860704,-430.0,0.00022465,2]
[362392663,1748245860714,-472.4,0.00022465,2]
[362392665,1748245860723,-430.0,0.00022465,2]
[362392667,1748245860733,-338.27820338,0.00022465,2]
[362392669,1748245860742,-430.0,0.00022465,2]
[362392671,1748245860752,-430.13,0.00022465,2]
[362392673,1748245860762,-699.59,0.00022465,2]
[362392675,1748245860771,-2830.25,0.00022465,2]
[362392677,1748245860781,-430.0,0.00022465,2]
[362392679,1748245860791,-444.44,0.00022465,2]
[362392681,1748245860800,-430.0,0.00022465,2]
[362392683,1748245860810,-432.14,0.00022465,2]
[362392685,1748245860821,-709.96,0.00022465,2]
[362392687,1748245860832,-430.0,0.00022465,2]
[362392689,1748245860842,-627.56,0.00022465,2]
[362392691,1748245860851,-1010.74,0.00022465,2]
[362392693,1748245860861,-430.0,0.00022465,2]
[362392695,1748245860871,-1887.09,0.00022465,2]
[362392697,1748245860881,-1569.9,0.00022465,2]
[362392699,1748245860892,-430.0,0.00022465,2]
[362392701,1748245860903,-1924.19,0.00022465,2]
[362392703,1748245860912,-3057.21,0.00022465,2]
[362392705,1748245860922,-518.54,0.00022465,2]
[362392707,1748245860931,-588.02,0.00022465,2]
[362392708,1748245860941,-430.0,0.00022465,2]
[362392710,1748245860950,-430.0,0.00022465,2]
[362392712,1748245860960,-468.75,0.00022465,2]
[362392714,1748245860969,-430.0,0.00022465,2]
[362392716,1748245860979,-459.99912837,0.00022465,2]
[362392718,1748245860988,-1257.45,0.00022465,2]
[362392720,1748245860998,-1149.24,0.00022465,2]
[362392722,1748245861008,-500.0,0.00022465,2]
[362392724,1748245861017,-2000.0,0.000225,2]
[362392726,1748245861026,-11328.85266884,0.00022678,2]
[362392728,1748245861036,-1112.61514983,0.00022693,7]
[362392730,1748245861046,-6000.0,0.00022712,2]
[362392732,1748245861056,-3600.0,0.00022712,2]
[362392734,1748245861065,-507.72,0.00022739,2]
[362392735,1748245861076,-430.0,0.00022739,2]
[362392736,1748245861085,-444.29,0.00022739,2]
[362392737,1748245861094,-430.0,0.00022739,2]
[362392738,1748245861104,-472.4,0.00022739,2]
[362392739,1748245861114,-430.0,0.00022739,2]
[362392740,1748245861123,-430.0,0.00022739,2]
[362392741,1748245861133,-430.13,0.00022739,2]
[362392742,1748245861142,-699.59,0.00022739,2]
[362392743,1748245861152,-2830.25,0.00022739,2]
[362392744,1748245861161,-430.0,0.00022739,2]
[362392745,1748245861170,-444.44,0.00022739,2]
[362392746,1748245861180,-430.0,0.00022739,2]
[362392747,1748245861189,-432.14,0.00022739,2]
[362392748,1748245861199,-709.96,0.00022739,2]
[362392749,1748245861209,-430.0,0.00022739,2]
[362392750,1748245861218,-627.56,0.00022739,2]
[362392751,1748245861228,-1010.74,0.00022739,2]
[362392752,1748245861237,-430.0,0.00022739,2]
[362392753,1748245861248,-1887.09,0.00022739,2]
[362392754,1748245861257,-1569.9,0.00022739,2]
[362392756,1748245861267,-357.73702143,0.00022739,2]
[362392758,1748245861277,-1924.19,0.00022739,2]
[362392760,1748245861287,-3057.21,0.00022739,2]
[362392762,1748245861297,-518.54,0.00022739,2]
[362392764,1748245861306,-588.02,0.00022739,2]
[362392766,1748245861316,-430.0,0.00022739,2]
[362392768,1748245861326,-430.0,0.00022739,2]
[362392770,1748245861336,-468.75,0.00022739,2]
[362392772,1748245861346,-177.92,0.00022739,2]
[362392774,1748245861356,-1257.45,0.00022739,2]
[362392776,1748245861367,-1149.24,0.00022739,2]
[362392778,1748245861377,-5000.0,0.0002277,2]
[362392780,1748245861386,-5000.0,0.00022801,2]
[362392782,1748245861396,-2202.971,0.00022818,2]
[362392785,1748245861407,-160.91209467,0.000229,5]
[362392787,1748245861417,-1112.61514983,0.00022969,8]
[362392789,1748245861427,-501.82903638,0.00022973,2]
[362392791,1748245861436,-805.7,0.00022982,4]
[362392793,1748245861446,-38328.90838336,0.0002299,2]
[362392795,1748245861455,-12346.4077926,0.00023,4]
[362392797,1748245861465,-50000.0,0.00023,4]
[362392799,1748245861475,-50000.0,0.00023,4]
[362392801,1748245861484,-50000.0,0.00023,4]
[362392802,1748245861493,-50000.0,0.00023,4]
[362392805,1748245861503,-50000.0,0.00023,4]
[362392806,1748245861513,-50000.0,0.00023,4]
[362392809,1748245861522,-50000.0,0.00023,4]
[362392810,1748245861532,-50000.0,0.00023,4]
[362392813,1748245861542,-50000.0,0.00023,4]
[362392815,1748245861552,-50000.0,0.00023,4]
[362392817,1748245861561,-50000.0,0.00023,4]
[362392819,1748245861571,-28848.0,0.00023,4]
[362392821,1748245861582,-500.0,0.00023,2]
[362392823,1748245861591,-500.0,0.00023,2]
[362392825,1748245861601,-500.0,0.00023,2]
[362392827,1748245861610,-500.0,0.00023,2]
[362392829,1748245861620,-500.0,0.00023,2]
[362392831,1748245861630,-500.0,0.00023,2]
[362392833,1748245861639,-500.0,0.00023,2]
[362392835,1748245861649,-500.0,0.00023,2]
[362392837,1748245861659,-500.0,0.00023,2]
[362392839,1748245861669,-2000.0,0.00023,2]
[362392841,1748245861679,-2000.0,0.00023,2]
[362392843,1748245861689,-24269.69886707,0.00023,2]
[362392845,1748245861698,-40041.95260743,0.00023,3]
[362392846,1748245861708,-20000.0,0.00023,120]
[362392849,1748245861718,-160.0,0.00023,3]
[362392862,1748245861840,-507.72,0.00023013,2]
[362392864,1748245861851,-430.0,0.00023013,2]
[362392866,1748245861861,-444.29,0.00023013,2]
[362392868,1748245861872,-340.55,0.00023013,2]
[362392870,1748245861882,-472.4,0.00023013,2]
[362392872,1748245861891,-430.0,0.00023013,2]
[362392874,1748245861901,-430.0,0.00023013,2]
[362392876,1748245861912,-430.13,0.00023013,2]
[362392878,1748245861922,-699.59,0.00023013,2]
[362392880,1748245861932,-2830.25,0.00023013,2]
[362392882,1748245861942,-429.85,0.00023013,2]
[362392884,1748245861951,-444.44,0.00023013,2]
[362392886,1748245861962,-430.0,0.00023013,2]
[362392888,1748245861971,-432.14,0.00023013,2]
[362392890,1748245861981,-709.96,0.00023013,2]
[362392892,1748245861991,-430.0,0.00023013,2]
[362392894,1748245862001,-627.56,0.00023013,2]
[362392896,1748245862010,-1010.74,0.00023013,2]
[362392898,1748245862020,-430.0,0.00023013,2]
[362392900,1748245862031,-1887.09,0.00023013,2]
[362392902,1748245862041,-1569.9,0.00023013,2]
[362392904,1748245862052,-1924.19,0.00023013,2]
[362392906,1748245862062,-3057.21,0.00023013,2]
[362392909,1748245862073,-518.54,0.00023013,2]
[362392911,1748245862083,-588.02,0.00023013,2]
[362392913,1748245862094,-430.0,0.00023013,2]
[362392915,1748245862103,-430.0,0.00023013,2]
[362392917,1748245862113,-468.75,0.00023013,2]
[362392919,1748245862123,-1257.45,0.00023013,2]
[362392921,1748245862133,-1149.24,0.00023013,2]
[362392923,1748245862143,-500.0,0.00023013,2]
[362392925,1748245862153,-805.7,0.00023082,6]
[362392927,1748245862163,-805.7,0.00023182,3]
[362392929,1748245862174,-11328.85266884,0.00023233,2]
[362392931,1748245862183,-1112.61514983,0.00023245,8]
[362392933,1748245862193,-7000.0,0.0002326,2]
[362392935,1748245862202,-4200.0,0.0002326,2]
[362392937,1748245862211,-205.0,0.0002327,2]
[362392939,1748245862221,-805.7,0.00023282,2]
[362392941,1748245862231,-507.72,0.00023287,2]
[362392943,1748245862241,-196.05,0.00023287,2]
[362392945,1748245862251,-444.29,0.00023287,2]
[362392947,1748245862261,-472.4,0.00023287,2]
[362392949,1748245862270,-430.0,0.00023287,2]
[362392951,1748245862280,-430.0,0.00023287,2]
[362392953,1748245862291,-699.59,0.00023287,2]
[362392955,1748245862300,-430.13,0.00023287,2]
[362392957,1748245862310,-2830.25,0.00023287,2]
[362392959,1748245862320,-444.44,0.00023287,2]
[362392961,1748245862330,-430.0,0.00023287,2]
[362392963,1748245862340,-432.14,0.00023287,2]
[362392965,1748245862350,-709.96,0.00023287,2]
[362392967,1748245862360,-430.0,0.00023287,2]
[362392969,1748245862369,-627.56,0.00023287,2]
[362392971,1748245862378,-1010.74,0.00023287,2]
[362392973,1748245862388,-430.0,0.00023287,2]
[362392975,1748245862398,-1887.09,0.00023287,2]
[362392977,1748245862409,-1569.9,0.00023287,2]
[362392979,1748245862419,-1924.19,0.00023287,2]
[362392981,1748245862429,-3057.21,0.00023287,2]
[362392984,1748245862439,-518.54,0.00023287,2]
[362392986,1748245862449,-588.02,0.00023287,2]
[362392988,1748245862459,-349.44,0.00023287,2]
[362392990,1748245862469,-430.0,0.00023287,2]
[362392992,1748245862478,-468.75,0.00023287,2]
[362392994,1748245862487,-1257.45,0.00023287,2]
[362392996,1748245862497,-1149.24,0.00023287,2]
[362392998,1748245862507,-828.33,0.000233,2]
[362393000,1748245862516,-500.0,0.000233,2]
[362393002,1748245862526,-5000.0,0.00023318,2]
[362393004,1748245862536,-600.0,0.00023352,2]
[362393006,1748245862546,-805.7,0.00023382,7]
[362393008,1748245862555,-805.7,0.00023482,2]
[362393010,1748245862565,-1112.61514983,0.00023521,9]
[362393012,1748245862574,-974.4,0.00023549,15]
[362393014,1748245862584,-507.72,0.00023561,2]
[362393016,1748245862593,-444.29,0.00023561,2]
[362393018,1748245862605,-472.4,0.00023561,2]
[362393020,1748245862615,-285.0,0.00023561,2]
[362393022,1748245862627,-430.0,0.00023561,2]
[362393024,1748245862637,-699.59,0.00023561,2]
[362393026,1748245862646,-430.13,0.00023561,2]
[362393028,1748245862656,-2830.25,0.00023561,2]
[362393030,1748245862666,-444.44,0.00023561,2]
[362393032,1748245862676,-430.0,0.00023561,2]
[362393034,1748245862686,-432.14,0.00023561,2]
[362393036,1748245862696,-709.96,0.00023561,2]
[362393038,1748245862706,-430.0,0.00023561,2]
[362393040,1748245862716,-627.56,0.00023561,2]
[362393042,1748245862726,-1010.74,0.00023561,2]
[362393044,1748245862736,-430.0,0.00023561,2]
[362393046,1748245862745,-1887.09,0.00023561,2]
[362393048,1748245862755,-1569.9,0.00023561,2]
[362393050,1748245862765,-1924.19,0.00023561,2]
[362393052,1748245862775,-3057.21,0.00023561,2]
[362393054,1748245862784,-518.54,0.00023561,2]
[362393056,1748245862795,-588.02,0.00023561,2]
[362393058,1748245862804,-430.0,0.00023561,2]
[362393060,1748245862814,-468.75,0.00023561,2]
[362393062,1748245862826,-1257.45,0.00023561,2]
[362393064,1748245862835,-1149.24,0.00023561,2]
[362393066,1748245862844,-500.0,0.00023561,2]
[362393068,1748245862854,-805.7,0.00023582,5]
[362393070,1748245862865,-231.28369723,0.00023589,2]
[362393072,1748245862876,-205.0,0.0002359,2]
[362393074,1748245862886,-3000.0,0.00023678,2]
[362393076,1748245862895,-805.7,0.00023682,2]
[362393078,1748245862906,-5037.91461055,0.00023684,2]
[362393080,1748245862918,-6491.11138145,0.00023687,2]
[362393082,1748245862928,-4091.93,0.000237,30]
[362393084,1748245862938,-805.7,0.00023782,3]
[362393086,1748245862947,-11328.85266884,0.00023789,2]
[362393088,1748245862956,-1112.61514983,0.00023797,9]
[362393090,1748245862966,-2977.314708,0.00023808,2]
[362393092,1748245862975,-4800.0,0.00023808,2]
[362393094,1748245862985,-507.72,0.00023835,2]
[362393096,1748245862995,-444.29,0.00023835,2]
[362393098,1748245863004,-472.4,0.00023835,2]
[362393100,1748245863014,-430.0,0.00023835,2]
[362393102,1748245863024,-699.59,0.00023835,2]
[362393104,1748245863033,-430.13,0.00023835,2]
[362393106,1748245863043,-2830.25,0.00023835,2]
[362393108,1748245863053,-444.44,0.00023835,2]
[362393110,1748245863065,-430.0,0.00023835,2]
[362393112,1748245863075,-432.14,0.00023835,2]
[362393114,1748245863085,-709.96,0.00023835,2]
[362393116,1748245863096,-430.0,0.00023835,2]
[362393118,1748245863106,-627.56,0.00023835,2]
[362393120,1748245863117,-1010.74,0.00023835,2]
[362393122,1748245863130,-430.0,0.00023835,2]
[362393124,1748245863142,-1887.09,0.00023835,2]
[362393126,1748245863154,-1569.9,0.00023835,2]
[362393128,1748245863165,-1924.19,0.00023835,2]
[362393130,1748245863176,-3057.21,0.00023835,2]
[362393132,1748245863187,-518.54,0.00023835,2]
[362393134,1748245863198,-588.02,0.00023835,2]
[362393136,1748245863208,-430.0,0.00023835,2]
[362393138,1748245863220,-468.75,0.00023835,2]
[362393140,1748245863231,-1257.45,0.00023835,2]
[362393142,1748245863241,-1149.24,0.00023835,2]
[362393144,1748245863252,-5000.0,0.00023866,2]
[362393146,1748245863262,-153.35382923,0.0002387,2]
[362393149,1748245863273,-805.7,0.00023882,5]
[362393150,1748245863283,-2429838.00968051,0.000239,2]
[362393152,1748245863292,-22283.114919,0.000239,2]
[362393154,1748245863302,-205.0,0.000239,2]
[362393156,1748245863312,-206.0,0.000239,2]
[362393158,1748245863322,-370.17682653,0.000239,2]
[362393160,1748245863332,-4134.52,0.00023982,8]
[362393163,1748245863342,-805.7,0.00023982,5]
[362393165,1748245863352,-521.25897049,0.00023989,10]
[362393167,1748245863361,-500.0,0.00023989,10]
[362393169,1748245863372,-500.0,0.00023989,10]
[362393170,1748245863381,-500.0,0.00023989,10]
[362393172,1748245863391,-500.0,0.00023989,10]
[362393174,1748245863401,-500.0,0.00023989,10]
[362393177,1748245863411,-500.0,0.00023989,10]
[362393179,1748245863420,-500.0,0.00023989,10]
[362393181,1748245863430,-500.0,0.00023989,10]
[362393182,1748245863440,-500.0,0.00023989,10]
[362393184,1748245863449,-500.0,0.00023989,10]
[362393186,1748245863459,-500.0,0.00023989,10]
[362393188,1748245863469,-500.0,0.00023989,10]
[362393190,1748245863478,-500.0,0.00023989,10]
[362393192,1748245863488,-954.93529431,0.00023989,10]
[362393194,1748245863498,-500.0,0.00023989,10]
[362393196,1748245863508,-500.0,0.00023989,10]
[362393198,1748245863518,-500.0,0.00023989,10]
[362393201,1748245863528,-500.0,0.00023989,10]
[362393203,1748245863538,-500.0,0.00023989,10]
[362393205,1748245863548,-500.0,0.00023989,10]
[362393206,1748245863558,-500.0,0.00023989,10]
[362393209,1748245863568,-500.0,0.00023989,10]
[362393211,1748245863578,-500.0,0.00023989,10]
[362393212,1748245863588,-500.0,0.00023989,10]
[362393213,1748245863598,-500.0,0.00023989,10]
[362393214,1748245863609,-500.0,0.00023989,10]
[362393215,1748245863622,-500.0,0.00023989,10]
[362393216,1748245863633,-966.45,0.00023989,10]
[362393217,1748245863643,-500.0,0.00023989,10]
[362393219,1748245863653,-584.26384275,0.00023989,10]
[362393221,1748245863663,-433905.8500841,0.00023999,15]
[362393223,1748245863675,-500.0,0.00024,2]
[362393225,1748245863686,-145317.23923349,0.00024,5]
[362393227,1748245863696,-13670.0,0.00024,7]
[362393228,1748245863706,-423.00916439,0.00024,7]
[362393229,1748245863716,-1681.41287987,0.00024,2]
[362393230,1748245863725,-10078.3522535,0.00024,2]
[362393231,1748245863735,-99883.84065881,0.00024,7]
[362393232,1748245863745,-3491.23253364,0.00024,7]
[362393233,1748245863755,-250755.71635298,0.00024,2]
[362393234,1748245863765,-50928.15248268,0.00024,2]
[362393235,1748245863775,-2000.0,0.00024,2]
[362393236,1748245863785,-2000.0,0.00024,2]
[362393237,1748245863795,-21761.04051542,0.00024,7]
[362393238,1748245863805,-36720.57024377,0.00024,2]
[362393239,1748245863815,-20000.0,0.00024,120]
[362393240,1748245863828,-229.15402412,0.00024,7]
[362393241,1748245863838,-229.15402412,0.00024,10]
[362393242,1748245863848,-229.15402412,0.00024,7]
[362393243,1748245863858,-423.08503179,0.00024,7]
[362393244,1748245863870,-423.08503179,0.00024,10]
[362393245,1748245863880,-423.08503179,0.00024,7]
[362393246,1748245863890,-160.0,0.00024,7]
[362393247,1748245863900,-160.0,0.00024,10]
[362393248,1748245863912,-212.59253735,0.00024,10]
[362393249,1748245863923,-200.0,0.0002405,9]
[362393250,1748245863932,-1112.61514983,0.00024072,10]
[362393251,1748245863943,-805.7,0.00024082,3]
[362393252,1748245863953,-507.72,0.00024109,2]
[362393253,1748245863962,-444.86,0.00024109,2]
[362393254,1748245863972,-444.86,0.00024109,2]
[362393255,1748245863981,-444.86,0.00024109,2]
[362393256,1748245864123,-444.86,0.00024109,2]
[362393257,1748245864134,-444.86,0.00024109,2]
[362393258,1748245864144,-444.86,0.00024109,2]
[362393259,1748245864153,-444.86,0.00024109,2]
[362393260,1748245864163,-444.86,0.00024109,2]
[362393261,1748245864173,-444.86,0.00024109,2]
[362393262,1748245864182,-444.86,0.00024109,2]
[362393263,1748245864192,-444.86,0.00024109,2]
[362393264,1748245864201,-444.86,0.00024109,2]
[362393265,1748245864211,-444.86,0.00024109,2]
[362393266,1748245864222,-444.86,0.00024109,2]
[362393267,1748245864231,-444.86,0.00024109,2]
[362393268,1748245864241,-444.86,0.00024109,2]
[362393269,1748245864250,-444.86,0.00024109,2]
[362393270,1748245864260,-444.86,0.00024109,2]
[362393271,1748245864270,-444.86,0.00024109,2]
[362393272,1748245864280,-444.29,0.00024109,2]
[362393273,1748245864291,-472.4,0.00024109,2]
[362393274,1748245864300,-444.39,0.00024109,2]
[362393275,1748245864309,-699.59,0.00024109,2]
[362393276,1748245864318,-430.13,0.00024109,2]
[362393277,1748245864328,-2830.25,0.00024109,2]
[362393278,1748245864338,-444.44,0.00024109,2]
[362393279,1748245864348,-302.36907539,0.00024109,2]
[362393280,1748245864358,-432.14,0.00024109,2]
[362393281,1748245864367,-709.96,0.00024109,2]
[362393282,1748245864378,-360.15,0.00024109,2]
[362393283,1748245864388,-627.56,0.00024109,2]
[362393284,1748245864398,-1010.74,0.00024109,2]
[362393285,1748245864412,-430.0,0.00024109,2]
[362393286,1748245864425,-1887.09,0.00024109,2]
[362393287,1748245864437,-1569.9,0.00024109,2]
[362393288,1748245864448,-418.03517786,0.00024109,2]
[362393289,1748245864983,-0.23526633,0.00020821,2]
[362393290,1748245865027,-650.78473367,0.00020821,2]
[362393291,1748245865037,-430.0,0.00021095,2]
[362393292,1748245865046,-200.51449022,0.00021095,2]
[362393293,1748245865056,-651.02,0.00021095,2]
[362393294,1748245865065,-430.0,0.00021369,2]
[362393295,1748245865075,-651.02,0.00021369,2]
[362393296,1748245865084,-430.0,0.00021643,2]
[362393297,1748245865094,-651.02,0.00021643,2]
[362393298,1748245865104,-430.0,0.00021917,2]
[362393299,1748245865114,-651.02,0.00021917,2]
[362393300,1748245865124,-430.0,0.00022191,2]
[362393301,1748245865134,-651.02,0.00022191,2]
[362393302,1748245865143,-430.0,0.00022465,2]
[362393303,1748245865153,-651.02,0.00022465,2]
[362393304,1748245865162,-430.0,0.00022739,2]
[362393305,1748245865171,-651.02,0.00022739,2]
[362393306,1748245865181,-550.17,0.00023013,2]
[362393307,1748245865190,-651.02,0.00023013,2]
[362393308,1748245865199,-651.02,0.00023287,2]
[362393309,1748245865209,-651.02,0.00023561,2]
[362393310,1748245865218,-651.02,0.00023835,2]
[362393311,1748245865228,-1506.15482214,0.00024109,2]